fUSD/lending_fUSD_20250906
["ID","MTS","AMOUNT","RATE_DAILY","PERIOD"]
[383865980,1757148555139,-500.0,0.00030842,2]
[383865981,1757148555161,-500.0,0.00030842,2]
[383865982,1757148555183,-500.0,0.00030842,2]
[383865983,1757148555204,-500.0,0.00030842,2]
[383865984,1757148555226,-500.0,0.00030842,2]
[383865985,1757148555248,-500.0,0.00030842,2]
[383865986,1757148555270,-500.0,0.00030842,2]
[383865987,1757148555291,-500.0,0.00030842,2]
[383865988,1757148555316,-500.0,0.00030842,2]
[383865989,1757148555340,-448.03,0.00030862,2]
[383865990,1757148555362,-500.0,0.00030897,2]
[383865991,1757148555384,-500.0,0.00030952,2]
[383865992,1757148555410,-500.0,0.00031007,2]
[383865993,1757148555433,-500.0,0.00031062,2]
[383865994,1757148555454,-500.0,0.00031117,2]
[383865995,1757148555475,-500.0,0.00031172,2]
[383865996,1757148555496,-500.0,0.00031227,2]
[383865997,1757148555518,-500.0,0.00031282,2]
[383865998,1757148555539,-500.0,0.00031337,2]
[383865999,1757148555560,-200.0,0.0003139,2]
[383866000,1757148555581,-200.0,0.0003139,2]
[383866001,1757148555601,-500.0,0.00031392,2]
[383866002,1757148555624,-448.03,0.00031797,2]
[383866003,1757148555646,-500.0,0.0003182,5]
[383866004,1757148555666,-665.35,0.00031891,2]
[383866005,1757148555687,-200.0,0.00031938,2]
[383866006,1757148555707,-200.0,0.00031938,2]
[383866007,1757148555727,-5000.0,0.00031954,2]
[383866008,1757148555749,-7571.21,0.00032065,2]
[383866009,1757148555771,-242.02425211,0.00032368,5]
[383866010,1757148555792,-200.0,0.00032394,2]
[383866011,1757148555814,-200.0,0.00032486,2]
[383866012,1757148555834,-200.0,0.00032486,2]
[383866013,1757148555855,-158.35,0.00032536,2]
[383866014,1757148555876,-484.776,0.00032732,33]
[383866015,1757148555898,-401.97196403,0.00032732,2]
[383866016,1757148556517,-46.05803597,0.00032732,2]
[383866017,1757148556539,-160.0,0.00032753,7]
[383866018,1757148556559,-862.47809,0.0003293,2]
[383866019,1757148556579,-500.0,0.00032952,2]
[383866020,1757148556600,-200.0,0.00033034,2]
[383866021,1757148556622,-200.0,0.00033034,2]
[383866022,1757148556644,-525.74,0.00033455,2]
[383866023,1757148556666,-735.01,0.00033483,2]
[383866024,1757148556686,-1107.31,0.00033509,2]
[383866025,1757148556707,-462.75924603,0.00033522,3]
[383866026,1757148562083,-162.7836252,0.00033522,3]
[383866027,1757148564129,-40.45712877,0.00033522,3]
[383866028,1757148564151,-170.03,0.00033567,2]
[383866029,1757148564172,-207.4,0.00033581,2]
[383866030,1757148564192,-200.0,0.00033582,2]
[383866031,1757148564212,-200.0,0.00033582,2]
[383866032,1757148564233,-448.03,0.00033667,2]
[383866033,1757148564255,-393.55789561,0.00033682,21]
[383866034,1757148564274,-199.0,0.00033698,7]
[383866035,1757148564298,-159.55,0.0003384,2]
[383866036,1757148564319,-159.0,0.0003384,2]
[383866037,1757148564338,-159.552256,0.0003384,2]
[383866038,1757148564358,-154.550779,0.0003384,2]
[383866039,1757148564377,-161.5466592,0.0003384,2]
[383866040,1757148564396,-327.19736723,0.0003384,5]
[383866041,1757148564415,-500.0,0.00033863,5]
[383866042,1757148564435,-154.5647011,0.00033863,2]
[383866043,1757148564455,-159.5516472,0.00033883,2]
[383866044,1757148564474,-159.5506592,0.00033883,2]
[383866045,1757148564505,-159.552256,0.00033883,2]
[383866046,1757148564525,-160.5494576,0.00033883,2]
[383866047,1757148564545,-159.0,0.00033883,2]
[383866048,1757148564566,-509.00047684,0.00033883,5]
[383866049,1757148564587,-500.65249209,0.00033883,5]
[383866050,1757148564606,-159.5506592,0.000339,2]
[383866051,1757148564626,-159.552256,0.000339,2]
[383866052,1757148564645,-159.552256,0.000339,2]
[383866053,1757148564665,-500.0,0.000339,5]
[383866054,1757148564685,-862.47809,0.0003393,2]
[383866055,1757148564704,-150.0,0.00034308,2]
[383866056,1757148564725,-552.51,0.00034368,120]
[383866057,1757148564746,-199.0,0.00034383,9]
[383866058,1757148564769,-150.0,0.00034383,2]
[383866059,1757148564789,-160.5494576,0.000344,5]
[383866060,1757148564815,-159.552256,0.000344,2]
[383866061,1757148564834,-200.0,0.00034436,2]
[383866062,1757148564856,-448.03,0.00034602,2]
[383866063,1757148564877,-161.64070028,0.00034619,4]
[383866064,1757148564897,-150.0,0.00034619,4]
[383866065,1757148564918,-156.89004854,0.00034619,4]
[383866066,1757148564939,-254.42044926,0.00034619,4]
[383866067,1757148603396,500.0,0.00033863,5]
[383866068,1757148603466,498.5509,0.00033863,2]
[383866069,1757148603495,159.552256,0.00033863,2]
[383866101,1757148631571,-2098.85,0.00034637,2]
[383866103,1757148631581,-207.35061149,0.0003483,2]
[383866104,1757148631591,-862.47809,0.0003493,2]
[383866105,1757148631600,-3786.48,0.00035,30]
[383866106,1757148631610,-199.0,0.00035068,11]
[383866107,1757148631619,-448.03,0.00035538,2]
[383866108,1757148631630,-156.552137,0.00035616,10]
[383866109,1757148631641,-80.80001915,0.00035616,10]
[383866110,1757148631655,-86.95338185,0.00035616,10]
[383866111,1757148631666,-199.0,0.00035753,13]
[383866112,1757148631676,-862.47809,0.0003593,2]
[383866113,1757148631685,-514.85095374,0.00036088,2]
[383866114,1757148631695,-400.0,0.00036176,2]
[383866115,1757148631705,-469.6,0.00036177,2]
[383866116,1757148631714,-439.63,0.00036375,2]
[383866117,1757148631725,-976.07,0.00036403,2]
[383866118,1757148631735,-199.0,0.00036438,15]
[383866119,1757148631745,-500.0,0.00036493,2]
[383866120,1757148631755,-393.55789561,0.00036609,27]
[383866121,1757148631764,-500.0,0.00036728,7]
[383866122,1757148631774,-250.0,0.00036901,2]
[383866123,1757148631783,-862.47809,0.0003693,2]
[383866124,1757148631793,-199.0,0.00037123,17]
[383866125,1757148631802,-747.94443108,0.00037141,2]
[383866126,1757148631812,-3600.0,0.000374,13]
[383866127,1757148631822,-747.94443108,0.00037463,2]
[383866128,1757148631832,-7300.0,0.000375,13]
[383866129,1757148631843,-747.94443108,0.00037579,2]
[383866130,1757148631853,-7138.10389442,0.000376,13]
[383866147,1757148632594,-1115.11461273,0.000376,13]
[383866148,1757148632618,-1018.54011695,0.000376,13]
[383866149,1757148632630,-1628.2413759,0.000376,13]
[383866150,1757148632640,-14600.0,0.000377,13]
[383866151,1757148632649,-500.0,0.0003778,7]
[383866152,1757148632660,-500.0,0.00037799,15]
[383866153,1757148632669,-181.3726897,0.00037799,15]
[383866154,1757148632678,-18200.0,0.000378,13]
[383866155,1757148632689,-199.0,0.00037808,19]
[383866156,1757148632698,-3600.0,0.000379,13]
[383866157,1757148632708,-862.47809,0.0003793,2]
[383866158,1757148632718,-158.35,0.00037958,2]
[383866159,1757148632728,-697.09926906,0.00038,2]
[383866160,1757148632738,-154.0,0.00038,120]
[383866161,1757148632748,-153.0,0.00038,120]
[383866162,1757148632759,-747.94443108,0.00038001,2]
[383866163,1757148632769,-188.13951771,0.00038083,2]
[383866164,1757148632803,-533.74112904,0.00038083,2]
[383866165,1757148632816,-26.06378436,0.00038083,2]
[383866166,1757148632826,-439.63,0.00038194,2]
[383866167,1757148632836,-6668.44711564,0.00038277,17]
[383866168,1757148632851,-1600.0,0.00038277,17]
[383866169,1757148632862,-360.07288436,0.00038277,17]
[383866170,1757148632872,-138.16743422,0.00038279,2]
[383866177,1757148637798,-21.27830296,0.00038279,2]
[383866299,1757148639201,-549.63663737,0.00038279,2]
[383866302,1757148639212,-709.08237454,0.0003829,2]
[383866304,1757148639222,-222.7758,0.000383,30]
[383866306,1757148639234,-709.08237454,0.00038301,2]
[383866308,1757148639245,-709.08237454,0.00038312,2]
[383866310,1757148639255,-709.08237454,0.00038323,2]
[383866312,1757148639267,-709.08237454,0.00038335,2]
[383866314,1757148639278,-709.08237454,0.00038346,2]
[383866316,1757148639292,-709.08237454,0.00038357,2]
[383866318,1757148639302,-500.0,0.00038362,60]
[383866320,1757148639312,-150.82227448,0.00038362,60]
[383866323,1757148639322,-500.0,0.00038362,60]
[383866325,1757148639334,-153.46913244,0.00038362,60]
[383866327,1757148639344,-150.0,0.00038362,60]
[383866329,1757148639355,-500.0,0.00038362,60]
[383866331,1757148639364,-500.0,0.00038362,60]
[383866333,1757148639375,-150.0,0.00038362,60]
[383866335,1757148639385,-150.0,0.00038362,60]
[383866337,1757148639395,-500.0,0.00038362,60]
[383866339,1757148639405,-150.0,0.00038362,2]
[383866341,1757148639415,-150.0,0.00038362,60]
[383866343,1757148639425,-150.0,0.00038362,60]
[383866345,1757148639435,-204.55335165,0.00038362,60]
[383866347,1757148639445,-274.37490696,0.00038362,60]
[383866349,1757148639455,-150.0,0.00038362,60]
[383866351,1757148639465,-150.0,0.00038362,60]
[383866354,1757148639475,-150.0,0.00038362,60]
[383866357,1757148639486,-150.0,0.00038362,60]
[383866359,1757148639496,-500.0,0.00038362,60]
[383866362,1757148639506,-150.0,0.00038362,60]
[383866364,1757148639520,-500.0,0.00038362,60]
[383866367,1757148639531,-150.0,0.00038362,60]
[383866370,1757148639542,-150.0,0.00038362,60]
[383866373,1757148639552,-150.0,0.00038362,2]
[383866376,1757148639562,-500.0,0.00038362,60]
[383866381,1757148639572,-500.0,0.00038362,60]
[383866384,1757148639584,-500.0,0.00038362,60]
[383866386,1757148639594,-500.0,0.00038362,60]
[383866388,1757148639604,-150.46733082,0.00038362,60]
[383866390,1757148639614,-257.03507409,0.00038362,46]
[383866392,1757148639625,-549.0,0.00038362,60]
[383866394,1757148639635,-500.0,0.00038362,2]
[383866396,1757148639645,-150.39137499,0.00038362,60]
[383866398,1757148639656,-473.0,0.00038362,60]
[383866400,1757148639666,-500.0,0.00038362,60]
[383866402,1757148639676,-709.08237454,0.00038368,2]
[383866404,1757148639686,-2144.1351,0.00038379,2]
[383866407,1757148639696,-1000.0,0.00038379,2]
[383866409,1757148639707,-2500.0,0.00038379,2]
[383866411,1757148639717,-794.00574248,0.00038379,2]
[383866413,1757148639727,-259.14923704,0.00038379,2]
[383866415,1757148639740,-2178.37977602,0.00038379,10]
[383866417,1757148639750,-421.41378965,0.00038379,13]
[383866419,1757148639761,-3920.33903163,0.00038379,2]
[383866421,1757148639771,-709.08237454,0.00038379,2]
[383866424,1757148639781,-330.62172828,0.00038379,2]
[383866426,1757148639792,-367.78574305,0.00038417,2]
[383866428,1757148639803,-162.11381349,0.00038458,11]
[383866430,1757148639813,-500.0,0.00038458,2]
[383866432,1757148639824,-262.16195066,0.00038458,2]
[383866434,1757148639834,-500.0,0.00038458,2]
[383866436,1757148639844,-290.58595348,0.00038466,7]
[383866438,1757148639854,-151.61,0.00038469,2]
[383866440,1757148639864,-151.61,0.00038469,2]
[383866442,1757148639875,-151.61,0.00038469,2]
[383866444,1757148639885,-151.61,0.00038469,2]
[383866446,1757148639895,-151.61,0.00038469,2]
[383866448,1757148639905,-151.61,0.00038469,2]
[383866450,1757148639915,-160.89,0.00038469,2]
[383866453,1757148639926,-160.89,0.00038469,2]
[383866455,1757148639936,-160.89,0.00038469,2]
[383866456,1757148639946,-160.89,0.00038469,2]
[383866458,1757148639955,-160.89,0.00038469,2]
[383866461,1757148639967,-500.0,0.00038473,5]
[383866463,1757148639978,-500.0,0.00038473,5]
[383866465,1757148639988,-151.0,0.00038476,14]
[383866467,1757148639998,-19074.8665991,0.00038477,4]
[383866469,1757148640008,-500.0,0.00038478,15]
[383866471,1757148640018,-500.0,0.00038478,15]
[383866473,1757148640029,-420.64811213,0.00038478,15]
[383866475,1757148640039,-189.93020032,0.00038478,15]
[383866477,1757148640050,-150.0,0.00038478,20]
[383866480,1757148640061,-6340471.95139918,0.00038479,30]
[383866482,1757148640076,-833493.184187,0.00038479,30]
[383866484,1757148640089,-9099.0,0.00038479,30]
[383866493,1757148640167,-23046.85067465,0.00038479,30]
[383866534,1757148640558,-302.0,0.00038479,30]
[383866628,1757148641462,-805.17812255,0.00038479,30]
[383866842,1757148643566,327.96491325,0.000249,2]
[383866847,1757148643604,327.964913,0.00027827,8]
[383866851,1757148643642,327.964913,0.00030754,14]
[383866856,1757148643674,327.964913,0.00033682,21]
[383867053,1757148645827,-327.964913,0.00036609,27]
[383867055,1757148645837,-1254.3500838,0.00038479,30]
[383868100,1757148672068,1615.0,0.000315,2]
[383868101,1757148842365,300.0,0.0002739,120]
[383868102,1757148842425,300.0,0.00026364,120]
[383868103,1757148844133,500.0,0.0002739,120]
[383868104,1757148844750,300.0,0.0002739,120]
[383868105,1757148846087,195.0,0.0002739,120]
[383868106,1757148846254,195.0,0.00026145,120]
[383868107,1757148847925,193.0,0.0002739,120]
[383868108,1757148848556,150.0,0.0002739,120]
[383868109,1757149151647,250.0,0.00015,2]
[383868110,1757149204666,-160.04,0.00018407,2]
[383868111,1757149204693,-26.23,0.00018407,2]
[383868112,1757149207590,-142.58,0.00018407,2]
[383868113,1757149207615,-49.93450235,0.000185,2]
[383868114,1757149210470,-157.97079583,0.000185,2]
[383868115,1757149218996,-107.41389306,0.000185,2]
[383868116,1757149219020,-192.58610694,0.00018938,2]
[383868117,1757149220614,-107.41389306,0.00018938,2]
[383868118,1757149220638,-142.58610694,0.00018938,2]
[383868119,1757149222871,-52.41389306,0.00018938,2]
[383868120,1757149222896,-138.78811212,0.00019376,2]
[383868121,1757149224138,-30.02188788,0.00019376,2]
[383868122,1757149224163,-156.0,0.00019656,2]
[383868124,1757149532120,-164.45578147,0.00019642,20]
[383868125,1757149532144,-168.3888056,0.00020345,2]
[383868126,1757149532168,-4.71054439,0.00020345,2]
[383868127,1757149609103,-164.09945561,0.00020345,2]
[383868128,1757149609128,-168.81,0.00021313,2]
[383868129,1757149609152,-168.81,0.00022282,2]
[383868130,1757149609173,-300.0,0.00022379,2]
[383868131,1757149609195,-160.12098,0.00022379,2]
[383868132,1757149618124,-13952.22348418,0.00038484,30]
[383868133,1757149618152,-30353.8839806,0.00038484,120]
[383868134,1757149618179,-10064.0,0.00038484,120]
[383868135,1757149618205,-157.15415631,0.00038484,120]
[383868137,1757149627110,-89.87902,0.00022379,2]
[383868138,1757149627135,-168.81,0.00023251,2]
[383868139,1757149627158,-148.3484135,0.0002422,2]
[383868140,1757149647093,-20.4615865,0.0002422,2]
[383868141,1757149647116,-443.95333733,0.000249,2]
[383868142,1757149647139,-168.81,0.00025189,2]
[383868143,1757149647159,-13.75262531,0.00025433,2]
[383868145,1757149682004,195.0,0.00027977,120]
[383868146,1757149686360,300.0,0.00027977,120]
[383868147,1757149736725,825.31732956,0.00038484,30]
[383868148,1757149748095,-429.15489282,0.000249,2]
[383868149,1757149748121,-168.81,0.00026157,2]
[383868150,1757149748149,-1200.0,0.00026749,2]
[383868151,1757149748172,-168.81,0.00027126,2]
[383868152,1757149748196,-300.0,0.00027297,2]
[383868153,1757149748220,-429.15489254,0.00027827,8]
[383868154,1757149748243,-168.81,0.00028095,2]
[383868155,1757149748265,-1266.0,0.00029054,2]
[383868156,1757149748287,-168.81,0.00029064,2]
[383868157,1757149748308,-1200.0,0.00029099,2]
[383868158,1757149748330,-200.0,0.000291,2]
[383868159,1757149748351,-181.1833724,0.000291,2]
[383868160,1757149748372,-151.0,0.000291,2]
[383868161,1757149748394,-151.0,0.000291,2]
[383868162,1757149748421,-151.0,0.000291,2]
[383868163,1757149748445,-151.0,0.000291,2]
[383868164,1757149748469,-151.0,0.000291,2]
[383868165,1757149748495,-3011.38049103,0.00029117,2]
[383868166,1757149748518,-300.0,0.00029502,2]
[383868167,1757149748540,-250.0,0.00029914,2]
[383868168,1757149748562,-159.87366215,0.0003,5]
[383868169,1757149748589,-168.81,0.00030033,2]
[383868170,1757149748613,-429.15489254,0.00030754,14]
[383868171,1757149748636,-191.76,0.00030985,2]
[383868172,1757149748662,-168.81,0.00031001,2]
[383868173,1757149748686,-1680.0,0.00031391,3]
[383868174,1757149748707,-514.85095374,0.00031422,2]
[383868175,1757149748754,-1321.41649551,0.000315,2]
[383868176,1757149748796,-252.08752167,0.000315,2]
[383868177,1757149748839,-387.82,0.0003197,31]
[383868178,1757149748882,-2000.0,0.0003197,2]
[383868179,1757149748924,-1100.0,0.0003197,2]
[383868180,1757149748947,-168.81,0.0003197,2]
[383868181,1757149748973,-500.0,0.0003204,5]
[383868182,1757149748996,-168.81,0.00032939,2]
[383868183,1757149749018,-500.0,0.00033041,2]
[383868184,1757149749042,-160.0,0.00033124,7]
[383868185,1757149749063,-570.07452639,0.00033167,5]
[383868186,1757149749085,-159.552256,0.00033167,2]
[383868187,1757149749455,-5000.0,0.0003329,2]
[383868188,1757149749480,-330.85,0.00033307,120]
[383868189,1757149749520,-1852.42,0.0003365,2]
[383868190,1757149749563,-429.15489254,0.00033682,21]
[383868191,1757149749601,-175.8,0.000337,120]
[383868192,1757149749641,-166.63,0.00033721,2]
[383868193,1757149749665,-666.0,0.00033742,3]
[383868194,1757149749687,-522.5,0.00033778,2]
[383868195,1757149749709,-354.56,0.00033803,2]
[383868196,1757149749730,-200.0,0.00033832,2]
[383868197,1757149749751,-150.0,0.00033841,2]
[383868198,1757149749777,-168.81,0.00033908,2]
[383868199,1757149749800,-159.6,0.0003392,30]
[383868200,1757149749824,-1865.05,0.00034135,2]
[383868201,1757149749847,-2308.19063067,0.000342,3]
[383868202,1757149753102,-660.70824775,0.0003329,2]
[383868203,1757149753142,-168.05834778,0.00034135,2]
[383868204,1757149753178,-1798.80936933,0.000342,3]
[383868205,1757149753211,-173.08,0.00034464,30]
[383868206,1757149753246,-168.81,0.00034877,2]
[383868207,1757149753278,-5169.63601314,0.000349,5]
[383868208,1757149768854,1199.8372505,0.00032796,2]
[383868209,1757149822387,153.85,0.0003446,30]
[383868212,1757149831820,-343.0,0.000348,5]
[383868213,1757149831831,-151.0,0.00034877,2]
[383868214,1757149831841,-330.35412388,0.00034877,2]
[383868215,1757149831851,-200.0,0.00035028,2]
[383868216,1757149831862,-547.97,0.0003506,120]
[383868217,1757149831872,-500.0,0.000351,2]
[383868218,1757149831883,-1215.27182754,0.000351,2]
[383868219,1757149831894,-160.0,0.00035163,2]
[383868220,1757149831904,-1615.78384636,0.000352,2]
[383868221,1757149831915,-9745.64,0.00035284,2]
[383868222,1757149831924,-354.56,0.00035493,2]
[383868223,1757149831934,-162.230729,0.00035616,10]
[383868224,1757149831944,-160.849542,0.00035616,10]
[383868225,1757149831954,-158.126981,0.00035616,10]
[383868226,1757149831964,-155.863598,0.00035616,10]
[383868227,1757149831973,-153.85,0.00035789,60]
[383868228,1757149831983,-168.81,0.00035845,2]
[383868229,1757149831993,-370.9891022,0.0003643,7]
[383868276,1757149837775,-165.17706194,0.00035845,2]
[383868277,1757149837785,-185.11669556,0.00035845,2]
[383868278,1757149837795,-129.0108978,0.0003643,7]
[383868279,1757149837805,-500.0,0.00036463,7]
[383868280,1757149837815,-500.0,0.00036604,7]
[383868281,1757149837825,-1000.0,0.00036606,30]
[383868282,1757149837835,-429.15489254,0.00036609,27]
[383868283,1757149837846,-500.0,0.00036681,7]
[383868284,1757149837856,-168.81,0.00036814,2]
[383868285,1757149837866,-500.0,0.00036882,7]
[383868286,1757149837876,-500.0,0.00037065,7]
[383868287,1757149837887,-153.85,0.00037118,60]
[383868288,1757149837897,-354.56,0.00037184,2]
[383868289,1757149837907,-228.8914787,0.000372,120]
[383868290,1757149837918,-228.89147869,0.000372,120]
[383868291,1757149837928,-500.0,0.00037489,7]
[383868293,1757149837938,-1199.8372505,0.00037722,2]
[383868295,1757149837949,-626.8132552,0.00038,30]
[383868296,1757149837959,-500.0,0.00038098,7]
[383868298,1757149837968,-676.03155017,0.00038227,2]
[383868299,1757149837978,-500.0,0.00038266,7]
[383868300,1757149837988,-150.17700814,0.00038291,20]
[383868302,1757149837998,-276.6475,0.00038362,2]
[383868305,1757149838008,-1000.0,0.00038362,2]
[383868307,1757149838018,-2500.0,0.00038362,2]
[383868309,1757149838028,-195.0,0.00038365,120]
[383868311,1757149838038,-2033.15445774,0.00038372,10]
[383868313,1757149838047,-238.91762306,0.00038372,2]
[383868315,1757149838057,-3070.52464131,0.00038379,2]
[383868317,1757149838067,-500.0,0.00038411,2]
[383868319,1757149838076,-159.25742452,0.00038431,2]
[383868321,1757149838085,-507.41184492,0.00038431,2]
[383868323,1757149838095,-160.89,0.00038452,2]
[383868325,1757149838105,-160.89,0.00038452,2]
[383868327,1757149838114,-500.0,0.00038458,2]
[383868329,1757149838126,-500.0,0.00038458,2]
[383868331,1757149838136,-150.0,0.00038458,2]
[383868333,1757149838146,-500.0,0.00038458,2]
[383868335,1757149838155,-500.0,0.00038458,2]
[383868337,1757149838166,-202.62948598,0.00038458,2]
[383868339,1757149838175,-500.0,0.00038458,2]
[383868341,1757149838185,-500.0,0.00038458,2]
[383868343,1757149838194,-150.50384467,0.00038458,2]
[383868345,1757149838206,-202.6086569,0.00038458,2]
[383868347,1757149838216,-500.0,0.00038458,2]
[383868349,1757149838226,-500.0,0.00038458,2]
[383868351,1757149838236,-150.0,0.00038458,2]
[383868354,1757149838248,-150.0,0.00038458,2]
[383868356,1757149838258,-150.0,0.00038458,2]
[383868358,1757149838268,-500.0,0.00038458,2]
[383868360,1757149838278,-500.0,0.00038458,2]
[383868362,1757149838287,-500.0,0.00038458,2]
[383868364,1757149838297,-150.0,0.00038458,2]
[383868366,1757149838306,-150.0,0.00038458,2]
[383868368,1757149838316,-556.0,0.00038458,2]
[383868370,1757149838327,-500.0,0.00038458,2]
[383868372,1757149838336,-494.0,0.00038458,2]
[383868374,1757149838346,-500.0,0.00038458,2]
[383868376,1757149838356,-160.89,0.0003846,2]
[383868378,1757149838366,-160.89,0.0003846,2]
[383868380,1757149838375,-160.89,0.0003846,2]
[383868382,1757149838384,-199.0,0.00038461,7]
[383868384,1757149838394,-337.30866973,0.00038461,15]
[383868386,1757149838404,-595.69033343,0.00038461,15]
[383868388,1757149838414,-545.54518794,0.00038461,7]
[383868390,1757149838424,-500.0,0.00038461,15]
[383868392,1757149838434,-500.0,0.00038461,15]
[383868394,1757149838444,-500.0,0.00038461,15]
[383868396,1757149838454,-500.0,0.00038461,15]
[383868398,1757149838463,-500.0,0.00038461,15]
[383868400,1757149838472,-500.0,0.00038461,15]
[383868402,1757149838482,-500.0,0.00038461,15]
[383868404,1757149838491,-500.0,0.00038461,15]
[383868406,1757149838500,-500.0,0.00038461,15]
[383868408,1757149838510,-500.0,0.00038461,15]
[383868410,1757149838519,-500.0,0.00038461,15]
[383868412,1757149838529,-500.0,0.00038461,15]
[383868415,1757149838539,-500.0,0.00038461,15]
[383868417,1757149838549,-500.0,0.00038461,15]
[383868418,1757149838560,-351.8165805,0.00038461,15]
[383868420,1757149838569,-500.0,0.00038461,15]
[383868422,1757149838578,-500.0,0.00038461,15]
[383868424,1757149838588,-500.0,0.00038461,15]
[383868426,1757149838598,-500.0,0.00038461,15]
[383868428,1757149838607,-186579.6754,0.00038462,2]
[383868430,1757149838617,-6779.04079915,0.00038469,3]
[383868433,1757149838626,-169.30438,0.00038469,2]
[383868435,1757149838637,-500.0,0.00038469,15]
[383868437,1757149838647,-500.0,0.00038469,15]
[383868439,1757149838656,-346.73243591,0.00038469,15]
[383868441,1757149838666,-420.64811213,0.00038469,15]
[383868443,1757149838675,-370482.7458841,0.0003847,2]
[383868445,1757149838685,-162.11381349,0.00038472,11]
[383868447,1757149838694,-680.57635074,0.00038472,2]
[383868449,1757149838703,-501.22324016,0.00038473,5]
[383868451,1757149838713,-500.0,0.00038473,5]
[383868453,1757149838722,-159.552256,0.00038473,2]
[383868455,1757149838732,-500.0,0.00038473,5]
[383868457,1757149838741,-491.7871953,0.00038473,5]
[383868459,1757149838751,-500.0,0.00038473,5]
[383868461,1757149838760,-500.0,0.00038473,5]
[383868463,1757149838770,-500.0,0.00038473,2]
[383868465,1757149838780,-200.0,0.00038479,2]
[383868467,1757149838790,-217578.9444756,0.00038479,2]
[383868469,1757149838799,-38620.8840886,0.00038479,2]
[383868471,1757149838809,-1259.93198409,0.00038479,2]
[383868473,1757149838818,-200.0,0.00038479,2]
[383868475,1757149838827,-500.0,0.00038484,5]
[383868477,1757149838837,-156.82,0.00038484,2]
[383868479,1757149838847,-155.0,0.00038484,2]
[383868482,1757149838857,-155.0,0.00038484,2]
[383868484,1757149838867,-3009.52215099,0.00038484,120]
[383868486,1757149838876,-153.85,0.00038484,60]
[383868488,1757149838886,-201.61319408,0.00038486,15]
[383868490,1757149838896,-150.0,0.00038486,15]
[383868492,1757149838906,-150.0,0.00038486,15]
[383868494,1757149838915,-160.45995756,0.00038486,15]
[383868496,1757149838924,-150.0,0.00038486,15]
[383868498,1757149838934,-150.0,0.00038486,15]
[383868500,1757149838943,-150.0,0.00038486,15]
[383868502,1757149838953,-150.0,0.00038486,15]
[383868504,1757149838963,-150.0,0.00038486,15]
[383868506,1757149838972,-6779.04079915,0.00038493,3]
[383868508,1757149838982,-317.87426759,0.000385,120]
[383868510,1757149838992,-10016.0978949,0.00038503,2]
[383868512,1757149839001,-164.27730878,0.00038517,7]
[383868514,1757149839011,-166.0,0.00038517,7]
[383868516,1757149839020,-166.0,0.00038517,7]
[383868518,1757149839030,-168.0,0.00038517,7]
[383868520,1757149839040,-171.57057685,0.00038529,30]
[383868522,1757149839049,-6779.04079915,0.00038552,3]
[383868524,1757149839059,-151.61,0.00038552,2]
[383868526,1757149839068,-514.41524438,0.00038557,3]
[383868528,1757149839078,-151.0,0.00038559,14]
[383868530,1757149839087,-162696.97918,0.00038562,3]
[383868532,1757149839097,-162020.658072,0.00038562,3]
[383868534,1757149839106,-6779.04079915,0.00038563,3]